bitfinex/quotes_BTCUSD_20240823
["timestamp","ask_amount","ask_price","bid_price","bid_amount"]
[1724439874981,0.088,63223.0,63217.0,0.16400298]
[1724439875179,0.01184406,63222.0,63220.0,0.158176]
[1724439875435,0.088,63223.0,63220.0,0.158176]
[1724439876436,0.088,63223.0,63217.0,0.48037198]
[1724439876670,0.088,63223.0,63220.0,0.002]
[1724439876813,0.001,63222.0,63220.0,0.008]
[1724439877221,0.001,63222.0,63221.0,0.158175]
[1724439877639,0.089,63223.0,63221.0,0.158175]
[1724439878259,0.089,63223.0,63222.0,0.158172]
[1724439879031,0.088,63223.0,63222.0,0.158172]
[1724439879586,0.088,63223.0,63222.0,0.157172]
[1724439879795,0.0882,63230.0,63229.0,0.158155]
[1724439880077,0.0882,63230.0,63229.0,0.63846798]
[1724439880238,0.0917,63236.0,63235.0,0.47442]
[1724439880582,0.0917,63236.0,63235.0,0.95470298]
[1724439881016,0.13507295,63242.0,63241.0,0.474375]
[1724439881424,0.0858,63242.0,63241.0,0.790625]
[1724439881634,0.0858,63242.0,63241.0,0.95462798]
[1724439881818,0.073,63250.0,63249.0,0.474315]
[1724439882382,0.1582,63250.0,63249.0,0.474315]
[1724439882953,0.1582,63250.0,63246.0,0.31622]
[1724439883154,0.1582,63250.0,63248.0,0.158106]
[1724439883354,0.1582,63250.0,63246.0,0.48022298]
[1724439883693,0.1582,63250.0,63249.0,0.003]
[1724439883957,0.1582,63250.0,63249.0,0.158105]
[1724439884157,0.1592,63250.0,63249.0,0.158105]
[1724439884311,0.0862,63250.0,63249.0,0.790525]
[1724439884751,0.0862,63250.0,63249.0,1.106735]
[1724439884937,0.001,63250.0,63249.0,1.106735]
[1724439885660,0.001,63250.0,63249.0,1.27073798]
[1724439886003,0.001,63250.0,63249.0,1.59094798]
[1724439886204,0.001,63250.0,63249.0,1.27373798]
[1724439886940,0.0855,63255.0,63254.0,0.474277]
[1724439887265,0.0855,63255.0,63254.0,0.789462]
[1724439887465,0.0855,63255.0,63254.0,1.105647]
[1724439887643,0.0009053,63256.0,63255.0,1.10663]
[1724439887845,0.0009053,63256.0,63255.0,1.27063298]
[1724439888664,0.0009053,63256.0,63255.0,1.34543298]
[1724439888865,0.0009053,63256.0,63255.0,1.66161298]
[1724439889732,0.0009053,63256.0,63255.0,2.06699298]
[1724439890017,0.0009053,63256.0,63255.0,2.09299298]
[1724439890018,0.0019053,63256.0,63255.0,2.09299298]
[1724439890221,0.0019053,63256.0,63255.0,2.19299298]
[1724439890350,0.0019053,63256.0,63255.0,2.19499298]
[1724439890709,0.0009053,63256.0,63255.0,2.17099298]
[1724439890911,0.0019053,63256.0,63255.0,2.19699298]
[1724439891127,0.0019053,63256.0,63255.0,2.226396]
[1724439891845,0.0019053,63256.0,63255.0,1.906216]
[1724439892074,0.0019053,63256.0,63255.0,1.87681298]
[1724439892286,0.0019053,63256.0,63255.0,1.77561298]
[1724439892487,0.0917053,63256.0,63255.0,1.28463298]
[1724439892663,0.0907053,63256.0,63255.0,1.27063298]
[1724439893130,0.0019053,63256.0,63255.0,1.29863298]
[1724439893341,0.0019053,63256.0,63255.0,1.28463298]
[1724439893551,0.0029053,63256.0,63255.0,1.28463298]
[1724439893763,0.0029053,63256.0,63255.0,1.67151298]
[1724439893975,0.0009053,63256.0,63255.0,1.65751298]
[1724439894184,0.0009053,63256.0,63255.0,1.75871298]
[1724439894394,0.4040803,63256.0,63255.0,0.026]
[1724439894589,1.1945173,63256.0,63255.0,0.012]
[1724439894790,1.20679274,63256.0,63255.0,0.012]
[1724439894993,0.89061774,63256.0,63255.0,0.012]
[1724439895195,0.10018074,63256.0,63255.0,0.012]
[1724439895369,0.25826774,63256.0,63255.0,0.012]
[1724439895808,0.2459923,63256.0,63255.0,0.012]
[1724439896021,0.0879053,63256.0,63248.0,0.000823]
[1724439896227,0.0889053,63256.0,63255.0,0.014]
[1724439896424,0.0879053,63256.0,63255.0,0.012]
[1724439896758,0.0979053,63256.0,63255.0,0.001]
[1724439896941,0.0869053,63256.0,63250.0,0.316203]
[1724439897138,0.0929053,63256.0,63255.0,0.001]
[1724439897383,0.0989053,63256.0,63255.0,0.001]
[1724439897786,0.0989053,63256.0,63251.0,0.316196]
[1724439897787,0.0929053,63256.0,63253.0,0.158094]
[1724439897959,0.0929053,63256.0,63248.0,0.000823]
[1724439897960,0.158093,63254.0,63248.0,0.000823]
[1724439898161,0.158093,63254.0,63248.0,0.32293298]
[1724439898366,0.0929053,63256.0,63248.0,0.000823]
[1724439898607,0.158091,63255.0,63248.0,0.15893]
[1724439898840,0.0929053,63256.0,63248.0,0.000823]
[1724439899120,0.158098,63252.0,63248.0,0.000823]
[1724439899318,0.158098,63252.0,63250.0,0.001]
[1724439899319,0.316,63252.0,63250.0,0.001]
[1724439899518,0.474098,63252.0,63250.0,0.001]
[1724439899733,0.474098,63252.0,63241.0,0.326249]
[1724439899734,0.316,63252.0,63241.0,0.01]
[1724439899925,0.316,63252.0,63242.0,0.16400298]
[1724439900126,0.316,63252.0,63248.0,0.002]
[1724439900367,0.316,63252.0,63248.0,0.001823]
[1724439900572,0.316,63252.0,63248.0,0.000823]
[1724439900782,0.323,63252.0,63250.0,0.158101]
[1724439900988,0.321,63252.0,63248.0,0.000823]
[1724439901411,0.323,63252.0,63248.0,0.000823]
[1724439902168,0.318,63252.0,63251.0,0.7905]
[1724439902364,0.318,63252.0,63251.0,1.27070298]
[1724439902365,0.002,63252.0,63251.0,1.27070298]
[1724439902566,0.007,63252.0,63251.0,1.27070298]
[1724439902970,0.005,63252.0,63251.0,1.27070298]
[1724439903169,0.0009053,63256.0,63255.0,0.79045]
[1724439903369,0.0009053,63256.0,63255.0,0.95445298]
[1724439903749,0.0009053,63256.0,63255.0,1.27063298]
[1724439903949,0.0009053,63256.0,63255.0,1.36113298]
[1724439904121,0.0009053,63256.0,63255.0,1.74841298]
[1724439904481,0.0009053,63256.0,63255.0,2.07559298]
[1724439904482,0.0019053,63256.0,63255.0,2.07559298]
[1724439904662,0.0019053,63256.0,63255.0,2.10671756]
[1724439904864,0.0898,63294.0,63272.0,1.563127]
[1724439905064,0.0898,63294.0,63272.0,1.72912998]
[1724439905264,0.0898,63294.0,63272.0,1.75012998]
[1724439905482,0.0898,63294.0,63283.0,1.10614]
[1724439905686,0.00907501,63297.0,63283.0,1.58718298]
[1724439905888,0.04938276,63296.0,63283.0,1.58718298]
[1724439906086,0.04938276,63296.0,63283.0,1.27114298]
[1724439906610,0.04938276,63296.0,63283.0,1.59918298]
[1724439906909,0.02148437,63284.0,63283.0,1.77438298]
[1724439907231,0.00907501,63297.0,63296.0,0.160987]
[1724439907426,0.00907501,63297.0,63296.0,0.98109837]
[1724439907661,0.04919994,63303.0,63302.0,0.474917]
[1724439907873,0.0853,63323.0,63312.0,0.474842]
[1724439908136,0.0853,63323.0,63312.0,1.58652998]
[1724439908445,0.0853,63323.0,63312.0,1.27063498]
[1724439908646,0.04925087,63325.0,63312.0,1.37063498]
[1724439909073,0.04925087,63325.0,63312.0,1.36963498]
[1724439909274,0.04925087,63325.0,63312.0,1.37063498]
[1724439909878,0.04925087,63325.0,63312.0,1.45553498]
[1724439910253,0.04925087,63325.0,63312.0,1.55463498]
[1724439910462,0.04925087,63325.0,63312.0,1.55763498]
[1724439910667,0.04925087,63325.0,63319.0,1.19991]
[1724439910861,0.087,63343.0,63319.0,1.48691298]
[1724439911012,0.00406401,63320.0,63319.0,1.80277298]
[1724439911442,0.00406401,63320.0,63319.0,2.18853298]
[1724439911646,0.00406401,63320.0,63319.0,1.87267298]
[1724439912426,0.00406401,63320.0,63319.0,1.87467298]
[1724439912774,0.00406401,63320.0,63319.0,1.87667298]
[1724439913195,0.00406401,63320.0,63319.0,1.89067298]
[1724439913538,0.00406401,63320.0,63319.0,1.90467298]
[1724439913775,0.00406401,63320.0,63319.0,1.90067298]
[1724439913978,0.00406401,63320.0,63319.0,1.56181298]
[1724439914136,0.00406401,63320.0,63319.0,1.08165298]
[1724439914333,0.00406401,63320.0,63319.0,0.66579298]
[1724439914534,0.00406401,63320.0,63319.0,0.98165298]
[1724439915009,0.00406401,63320.0,63319.0,1.29851298]
[1724439915409,0.00406401,63320.0,63319.0,1.70377298]
[1724439915617,0.00406401,63320.0,63319.0,1.80377298]
[1724439916352,0.00406401,63320.0,63319.0,1.71437298]
[1724439916574,0.00406401,63320.0,63319.0,1.39851298]
[1724439916785,0.00406401,63320.0,63319.0,0.19200298]
[1724439916976,0.00406401,63320.0,63319.0,0.34993298]
[1724439917180,0.00406401,63320.0,63319.0,1.29751298]
[1724439917311,0.00406401,63320.0,63319.0,1.46641298]
[1724439917518,0.00406401,63320.0,63319.0,1.78227298]
[1724439918159,0.00406401,63320.0,63319.0,1.90527298]
[1724439918380,0.00406401,63320.0,63319.0,1.78857298]
[1724439918585,0.00406401,63320.0,63319.0,1.47371298]
[1724439919337,0.00406401,63320.0,63319.0,1.47271298]
[1724439919467,0.00406401,63320.0,63319.0,1.47371298]
[1724439920272,0.00406401,63320.0,63319.0,1.79157298]
[1724439920472,0.00406401,63320.0,63319.0,1.81657298]
[1724439920880,0.00406401,63320.0,63319.0,2.13243298]
[1724439921535,0.00406401,63320.0,63319.0,2.22593298]
[1724439921735,0.00406401,63320.0,63319.0,1.90507298]
[1724439921957,0.00406401,63320.0,63319.0,1.78957298]
[1724439922280,0.00406401,63320.0,63319.0,1.81257298]
[1724439922691,0.00406401,63320.0,63319.0,1.78957298]
[1724439922885,0.00406401,63320.0,63319.0,1.39751298]
[1724439923298,0.00406401,63320.0,63319.0,1.39851298]
[1724439923904,0.00406401,63320.0,63319.0,1.71437298]
[1724439924130,0.00406401,63320.0,63319.0,1.81097298]
[1724439924338,0.00406401,63320.0,63319.0,1.83397298]
[1724439924798,0.00406401,63320.0,63319.0,1.83479698]
[1724439925001,0.00406401,63320.0,63319.0,1.83679698]
[1724439925206,0.00406401,63320.0,63319.0,2.15265698]
[1724439925427,0.00406401,63320.0,63319.0,2.15065698]
[1724439925635,0.0125956,63328.0,63327.0,1.592394]
[1724439925845,0.0125956,63328.0,63327.0,2.19721798]
[1724439927270,0.0125956,63328.0,63327.0,2.19921798]
[1724439927432,0.0125956,63328.0,63327.0,2.21321798]
[1724439927830,0.0125956,63328.0,63327.0,1.78779698]
[1724439928250,0.0125956,63328.0,63327.0,1.77379698]
[1724439928709,0.0125956,63328.0,63327.0,1.78779698]
[1724439929057,0.0125956,63328.0,63327.0,1.71419698]
[1724439929269,0.0125956,63328.0,63327.0,1.68619698]
[1724439929679,0.0125956,63328.0,63327.0,1.70019698]
[1724439930120,0.0125956,63328.0,63327.0,1.26937598]
[1724439930337,0.0125956,63328.0,63327.0,0.96755498]
[1724439930545,0.0125956,63328.0,63327.0,1.28337598]
[1724439931594,0.0125956,63328.0,63327.0,1.29137598]
[1724439932377,0.0125956,63328.0,63327.0,1.27737598]
[1724439932530,0.0125956,63328.0,63327.0,1.28937598]
[1724439933179,0.0125956,63328.0,63327.0,0.97355498]
[1724439933588,0.1115956,63328.0,63327.0,0.97355498]
[1724439934603,0.1115956,63328.0,63327.0,1.28937598]
[1724439934840,0.0125956,63328.0,63327.0,0.97355498]
[1724439935056,0.0125956,63328.0,63327.0,1.29037598]
[1724439935225,0.0125956,63328.0,63327.0,1.67569698]
[1724439935658,0.0125956,63328.0,63327.0,1.77569698]
[1724439935869,0.0125956,63328.0,63327.0,1.75769698]
[1724439936060,0.0125956,63328.0,63327.0,1.78269698]
[1724439936283,0.0125956,63328.0,63327.0,1.81069698]
[1724439936471,0.0125956,63328.0,63327.0,2.12651798]
[1724439936676,0.04915697,63340.0,63339.0,1.516624]
[1724439936810,0.04915697,63340.0,63339.0,1.78262698]
[1724439937012,0.00906401,63348.0,63347.0,1.105023]
[1724439937209,0.02091733,63348.0,63347.0,1.26902598]
[1724439937597,0.02091733,63348.0,63347.0,1.58574698]
[1724439937598,0.00906401,63348.0,63347.0,1.58574698]
[1724439937803,0.02091704,63348.0,63347.0,1.58574698]
[1724439937994,0.02091704,63348.0,63347.0,2.09846798]
[1724439938192,0.00906401,63348.0,63347.0,1.78604698]
[1724439938394,0.00906401,63348.0,63347.0,1.76304698]
[1724439938750,0.00906401,63348.0,63347.0,1.78804698]
[1724439938951,0.00906401,63348.0,63347.0,2.10376798]
[1724439939154,0.00906401,63348.0,63347.0,1.80204698]
[1724439939570,0.00906401,63348.0,63347.0,1.80004698]
[1724439939929,0.00906401,63348.0,63347.0,1.78804698]
[1724439940047,0.00906401,63348.0,63347.0,1.78604698]
[1724439940257,0.00906401,63348.0,63347.0,1.69974698]
[1724439940646,0.00906401,63348.0,63347.0,1.69212241]
[1724439941172,0.00906401,63348.0,63347.0,1.37640141]
[1724439941935,0.00906401,63348.0,63347.0,1.38940141]
[1724439942083,0.00906401,63348.0,63347.0,1.38302598]
[1724439942694,0.00906401,63348.0,63347.0,1.36902598]
[1724439942900,0.00906401,63348.0,63347.0,1.38302598]
[1724439943100,0.00906401,63348.0,63347.0,0.98130498]
[1724439943318,0.00906401,63348.0,63347.0,0.96730498]
[1724439943526,0.00906401,63348.0,63347.0,0.95330498]
[1724439943720,0.00906401,63348.0,63347.0,1.29702598]
[1724439945039,0.00906401,63348.0,63347.0,1.26902598]
[1724439945240,0.00906401,63348.0,63347.0,1.28302598]
[1724439945525,0.00906401,63348.0,63347.0,1.29702598]
[1724439945940,0.00906401,63348.0,63347.0,0.98130498]
[1724439946481,0.00906401,63348.0,63347.0,1.29702598]
[1724439947052,0.00906401,63348.0,63347.0,1.61274698]
[1724439947200,0.00906401,63348.0,63347.0,1.29702598]
[1724439947406,0.00906401,63348.0,63347.0,1.40302598]
[1724439947565,0.00906401,63348.0,63347.0,2.19928345]
[1724439948342,0.00906401,63348.0,63347.0,2.18528345]
[1724439948920,0.00906401,63348.0,63347.0,2.19928345]
[1724439949278,0.00906401,63348.0,63347.0,2.19528345]
[1724439949771,0.00906401,63348.0,63347.0,2.19928345]
[1724439950794,0.00906401,63348.0,63347.0,2.19528345]
[1724439950991,0.00906401,63348.0,63347.0,1.79174698]
[1724439951195,0.00906401,63348.0,63347.0,1.79374698]
[1724439952582,0.00906401,63348.0,63347.0,1.79574698]
[1724439952967,0.00906401,63348.0,63347.0,1.47602598]
[1724439953322,0.00906401,63348.0,63347.0,1.47802598]
[1724439953526,0.00906401,63348.0,63347.0,1.79374698]
[1724439954158,0.00906401,63348.0,63347.0,1.79574698]
[1724439954362,0.00906401,63348.0,63347.0,1.81874698]
[1724439954566,0.00906401,63348.0,63347.0,2.13446798]
[1724439954767,0.00906401,63348.0,63347.0,1.81474698]
[1724439955022,0.00906401,63348.0,63347.0,1.81674698]
[1724439955231,0.00906401,63348.0,63347.0,1.81474698]
[1724439955429,0.00906401,63348.0,63347.0,1.81674698]
[1724439955662,0.00906401,63348.0,63347.0,1.81474698]
[1724439955920,0.00906401,63348.0,63347.0,1.79174698]
[1724439956158,0.00906401,63348.0,63347.0,1.79374698]
[1724439957090,0.00906401,63348.0,63347.0,1.79574698]
[1724439958040,0.00906401,63348.0,63347.0,1.79174698]
[1724439958314,0.00906401,63348.0,63347.0,1.79374698]
[1724439958796,0.00906401,63348.0,63347.0,1.79574698]
[1724439959044,0.00906401,63348.0,63347.0,1.79174698]
[1724439960048,0.00906401,63348.0,63347.0,1.79374698]
[1724439960513,0.00906401,63348.0,63347.0,1.79574698]
[1724439961271,0.00906401,63348.0,63347.0,1.79174698]
[1724439961762,0.00906401,63348.0,63347.0,1.77774698]
[1724439962253,0.00906401,63348.0,63347.0,1.69974698]
[1724439962493,0.00906401,63348.0,63347.0,0.17800298]
[1724439962494,0.10516401,63348.0,63347.0,0.17800298]
[1724439963017,0.10516401,63348.0,63347.0,0.96730498]
[1724439963260,0.11740786,63348.0,63347.0,0.96730498]
[1724439963588,0.11740786,63348.0,63347.0,0.014]
[1724439963798,0.66518186,63348.0,63347.0,0.028]
[1724439964038,1.07970712,63348.0,63347.0,0.014]
[1724439964297,1.07970712,63348.0,63331.0,0.3158]
[1724439964298,0.0961,63341.0,63331.0,0.3158]
[1724439964589,0.01224086,63340.0,63337.0,0.157883]
[1724439964822,0.0961,63339.0,63337.0,0.157883]
[1724439965071,0.10834086,63338.0,63332.0,0.16400298]
[1724439965307,0.0742,63342.0,63332.0,0.16400298]
[1724439965308,0.0961,63339.0,63332.0,0.16400298]
[1724439965558,0.01224626,63338.0,63336.0,0.157885]
[1724439965806,0.0961,63339.0,63337.0,0.169885]
[1724439966061,0.0961,63337.0,63333.0,0.315786]
[1724439966296,0.0961,63337.0,63334.0,0.47978798]
[1724439966546,0.0961,63337.0,63334.0,0.16400298]
[1724439966995,0.315744,63343.0,63330.0,0.00038016]
[1724439966996,0.1579,63331.0,63330.0,0.00038016]
[1724439967234,0.1657,63331.0,63330.0,0.00038016]
[1724439967549,0.1657,63331.0,63330.0,0.15828316]
[1724439967794,0.1657,63331.0,63330.0,0.00038016]
[1724439968040,0.797302,63331.0,63330.0,0.00038016]
[1724439968344,0.639401,63331.0,63330.0,0.00038016]
[1724439968559,0.96744739,63331.0,63330.0,0.00038016]
[1724439968791,0.65164639,63331.0,63330.0,0.00038016]
[1724439969030,0.65164676,63331.0,63330.0,0.00038016]
[1724439969293,0.65164676,63331.0,63328.0,0.000824]
[1724439969294,0.157905,63329.0,63328.0,0.000824]
[1724439969522,1.03949823,63329.0,63328.0,0.000824]
[1724439969760,1.03949823,63329.0,63320.0,0.00127847]
[1724439969761,1.33496147,63321.0,63320.0,0.00127847]
[1724439969981,1.66305723,63321.0,63320.0,0.00127847]
[1724439970690,0.0979,63310.0,63304.0,0.49229154]
[1724439970961,0.315856,63320.0,63283.0,0.49229154]
[1724439970962,0.332175,63301.0,63283.0,0.49229154]
[1724439971416,0.332175,63301.0,63270.0,0.001]
[1724439971417,0.42514896,63301.0,63270.0,0.001]
[1724439971421,0.001,63300.0,63280.0,0.316055]
[1724439971683,0.158007,63289.0,63280.0,0.158027]
[1724439971968,0.158007,63289.0,63264.0,0.00923]
[1724439971969,0.0965,63286.0,63278.0,0.158031]
[1724439972257,0.0965,63286.0,63277.0,0.158034]
[1724439972505,0.0965,63286.0,63269.0,0.001]
[1724439972736,0.0965,63286.0,63278.0,0.158031]
[1724439972968,0.0965,63286.0,63275.0,0.316077]
[1724439973212,0.0974,63281.0,63273.0,0.158044]
[1724439973455,0.0474,63281.0,63280.0,0.001]
[1724439973916,0.521475,63281.0,63280.0,0.001]
[1724439974163,0.38153647,63286.0,63270.0,0.000824]
[1724439974164,0.001,63283.0,63270.0,0.000824]
[1724439974409,0.38153647,63286.0,63271.0,0.49229154]
[1724439974410,0.38053647,63277.0,63271.0,0.49229154]
[1724439974664,0.31604,63284.0,63264.0,0.00823]
[1724439974665,0.316047,63282.0,63269.0,0.158054]
[1724439974895,0.158029,63280.0,63269.0,0.158054]
[1724439975262,0.158029,63280.0,63270.0,0.158052]
[1724439975263,0.1,63279.0,63270.0,0.158052]
[1724439975515,0.0658,63278.0,63264.0,0.008054]
[1724439975795,0.0658,63278.0,63277.0,0.474105]
[1724439976066,0.04965112,63282.0,63277.0,0.474105]
[1724439976067,0.04965112,63282.0,63281.0,0.158025]
[1724439976282,0.0658,63286.0,63281.0,0.31605]
[1724439976530,0.0658,63286.0,63285.0,0.464045]
[1724439976785,0.0658,63286.0,63285.0,0.780075]
[1724439977031,0.315,63288.0,63287.0,0.15801]
[1724439977032,0.4083,63288.0,63287.0,0.15801]
[1724439977286,0.4083,63288.0,63287.0,0.79005]
[1724439977524,0.4083,63288.0,63287.0,0.47403]
[1724439978278,0.4083,63288.0,63287.0,0.79005]
[1724439978515,0.4083,63288.0,63287.0,1.10607]
[1724439978837,0.4083,63288.0,63287.0,0.79005]
[1724439979037,0.4083,63288.0,63287.0,0.15801]
[1724439979328,0.4083,63288.0,63280.0,0.316054]
[1724439979581,0.4083,63288.0,63287.0,0.15801]
[1724439980085,0.4083,63288.0,63287.0,0.004]
[1724439980336,0.4093,63288.0,63287.0,0.16201]
[1724439980573,0.4083,63288.0,63287.0,0.47803]
[1724439980780,0.4093,63288.0,63287.0,0.47803]
[1724439981296,0.4093,63288.0,63287.0,0.79405]
[1724439981506,0.0943,63288.0,63287.0,1.11007]
[1724439981710,0.001,63288.0,63287.0,1.59009298]
[1724439982319,0.001,63288.0,63287.0,1.69269298]
[1724439982565,0.001,63288.0,63287.0,1.79269298]
[1724439982797,0.1069,63306.0,63287.0,1.79269298]
[1724439982798,0.1069,63306.0,63305.0,0.789825]
[1724439983042,0.04971093,63306.0,63305.0,0.47993298]
[1724439983277,0.04971093,63306.0,63305.0,0.95382798]
[1724439983499,0.1069,63312.0,63311.0,0.3159]
[1724439983769,0.1069,63312.0,63310.0,0.157952]
[1724439983971,0.1069,63312.0,63305.0,0.16400298]
[1724439983972,0.1069,63312.0,63307.0,0.157959]
[1724439984174,0.12342765,63312.0,63309.0,0.157954]
[1724439984545,0.12342765,63312.0,63310.0,0.157952]
[1724439985300,0.12342765,63312.0,63311.0,0.15795]
[1724439985728,0.12342765,63312.0,63311.0,0.15995]
[1724439985929,0.12342765,63312.0,63311.0,0.47585]
[1724439986144,0.12342765,63312.0,63311.0,0.47385]
[1724439986927,0.12342765,63312.0,63310.0,0.160952]
[1724439987122,0.12342765,63312.0,63310.0,0.157952]
[1724439987331,0.12342765,63312.0,63292.0,0.0752]
[1724439987547,0.12342765,63312.0,63311.0,0.001]
[1724439988448,0.12342765,63312.0,63307.0,0.157958]
[1724439988703,0.13442765,63312.0,63307.0,0.315916]
[1724439988983,0.1179,63312.0,63311.0,0.15795]
[1724439989238,0.011,63312.0,63311.0,1.10565]
[1724439989870,0.0988,63319.0,63318.0,0.473797]
[1724439990367,0.0988,63319.0,63318.0,0.789662]
[1724439991536,0.0998,63319.0,63318.0,0.795662]
[1724439992352,0.0998,63319.0,63318.0,0.805662]
[1724439992716,0.001,63319.0,63318.0,1.60139498]
[1724439993970,0.001,63319.0,63318.0,0.805662]
[1724439994229,0.1022,63319.0,63318.0,0.173932]
[1724439994576,0.1022,63319.0,63318.0,0.016]
[1724439995038,0.1763,63319.0,63318.0,0.016]
[1724439995567,0.1763,63319.0,63318.0,0.173932]
[1724439996104,0.1763,63319.0,63318.0,0.006]
[1724439996305,0.1753,63319.0,63318.0,0.004]
[1724439996532,0.1753,63319.0,63318.0,0.165932]
[1724439996533,0.1012,63319.0,63318.0,0.165932]
[1724439996686,0.1012,63319.0,63318.0,0.481797]
[1724439996885,0.1012,63319.0,63318.0,0.004]
[1724439997086,0.1012,63319.0,63318.0,0.165932]
[1724439997675,0.1012,63319.0,63318.0,0.008]
[1724439997973,0.1012,63319.0,63318.0,0.165932]
[1724439998933,0.10210751,63319.0,63318.0,0.797662]
[1724439999180,0.10210751,63319.0,63318.0,0.008]
[1724439999555,0.26003751,63319.0,63318.0,0.008]
[1724439999717,0.58809694,63319.0,63318.0,0.008]
[1724439999921,0.90395694,63319.0,63318.0,0.008]
[1724440000120,0.89175751,63319.0,63318.0,0.008]
[1724440000324,0.90395377,63319.0,63318.0,0.008]
[1724440000549,0.89175751,63319.0,63318.0,0.008]
[1724440000744,1.19982146,63319.0,63318.0,0.008]
[1724440000951,0.88396781,63319.0,63318.0,0.008]
[1724440001577,1.19982781,63319.0,63318.0,0.008]
[1724440001794,1.19982781,63319.0,63318.0,0.004]
[1724440002019,1.20082781,63319.0,63318.0,0.004]
[1724440002220,1.28242781,63319.0,63318.0,0.004]
[1724440002418,0.157958,63308.0,63302.0,0.5630631]
[1724440002712,0.315,63314.0,63313.0,0.157945]
[1724440002917,0.315,63314.0,63313.0,0.473835]
[1724440003339,0.315,63314.0,63313.0,0.789725]
[1724440003923,0.315,63314.0,63313.0,0.473835]
[1724440004095,0.315,63314.0,63313.0,0.789725]
[1724440004512,0.315,63314.0,63313.0,0.95372798]
[1724440004737,0.315,63314.0,63313.0,1.27561798]
[1724440004738,0.316,63314.0,63313.0,1.27561798]
[1724440006864,0.316,63314.0,63313.0,0.95972798]
[1724440007260,0.316,63314.0,63313.0,1.27561798]
[1724440007462,0.316,63314.0,63313.0,0.795725]
[1724440007669,0.001,63314.0,63313.0,0.795725]
[1724440007862,0.001,63314.0,63313.0,1.111615]
[1724440008912,0.002,63314.0,63313.0,1.28161798]
[1724440010820,0.002,63314.0,63313.0,1.59750798]
[1724440011789,0.002,63314.0,63313.0,1.28161798]
[1724440012095,0.0029064,63314.0,63313.0,1.28161798]
[1724440012369,0.0029064,63314.0,63313.0,1.59750798]
[1724440013014,0.0029064,63314.0,63313.0,1.70130798]
[1724440013138,0.0029064,63314.0,63313.0,2.58173445]
[1724440013350,0.0029064,63314.0,63313.0,2.58273445]
[1724440013753,0.0019064,63314.0,63313.0,2.57873445]
[1724440013961,0.0019064,63314.0,63313.0,2.57473445]
[1724440014159,0.0019064,63314.0,63313.0,2.58473445]
[1724440014362,0.0029064,63314.0,63313.0,2.58773445]
[1724440014575,0.0029064,63314.0,63313.0,2.58473445]
[1724440014774,0.0029064,63314.0,63313.0,2.58673445]
[1724440014983,0.0039064,63314.0,63313.0,2.58773445]
[1724440015263,0.0039064,63314.0,63313.0,2.20719798]
[1724440015498,0.0029064,63314.0,63313.0,2.19319798]
[1724440015798,0.0029064,63314.0,63313.0,2.20919798]
[1724440016158,0.0029064,63314.0,63313.0,2.19519798]
[1724440016575,0.0029064,63314.0,63313.0,1.88930798]
[1724440016980,0.0029064,63314.0,63313.0,1.89030798]
[1724440016981,0.0009064,63314.0,63313.0,1.89030798]
[1724440017223,0.0009064,63314.0,63313.0,1.89649311]
[1724440017882,0.0019064,63314.0,63313.0,1.91049311]
[1724440018018,0.0019064,63314.0,63313.0,1.90549311]
[1724440018230,0.0019064,63314.0,63313.0,1.37961798]
[1724440018820,0.0019064,63314.0,63313.0,1.36561798]
[1724440019260,0.0019064,63314.0,63313.0,1.37961798]
[1724440019853,0.0019064,63314.0,63313.0,1.36561798]
[1724440020246,0.0009064,63314.0,63313.0,1.35161798]
[1724440020449,0.0019064,63314.0,63313.0,1.37361798]
[1724440020704,0.0969064,63314.0,63313.0,0.022]
[1724440020915,0.0969064,63314.0,63313.0,0.495835]
[1724440021124,0.0019064,63314.0,63313.0,1.127615]
[1724440021563,0.01410899,63314.0,63313.0,1.29161798]
[1724440021766,0.01310899,63314.0,63313.0,1.28361798]
[1724440021967,0.01310899,63314.0,63313.0,1.26961798]
[1724440022172,0.01410899,63314.0,63313.0,1.27661798]
[1724440022303,0.01410899,63314.0,63313.0,1.28661798]
[1724440022731,0.02590599,63314.0,63313.0,1.28661798]
[1724440023232,0.0137034,63314.0,63313.0,1.28661798]
[1724440024480,0.0019064,63314.0,63313.0,1.28661798]
[1724440024679,0.02592329,63314.0,63313.0,1.28661798]
[1724440025024,0.01371219,63314.0,63313.0,1.28661798]
[1724440025512,0.02592274,63314.0,63313.0,1.28661798]
[1724440026283,0.02592259,63314.0,63313.0,1.28661798]
[1724440026997,0.02592373,63314.0,63313.0,1.28661798]
[1724440027911,0.02592373,63314.0,63313.0,0.174945]
[1724440028241,0.02592373,63314.0,63313.0,0.017]
[1724440028445,0.0259281,63314.0,63313.0,0.017]
[1724440028676,0.0259281,63314.0,63313.0,0.174945]
[1724440029082,0.0259281,63314.0,63313.0,0.490835]
[1724440029653,0.0259281,63314.0,63313.0,0.806725]
[1724440030714,0.0259281,63314.0,63313.0,0.017]
[1724440030873,0.0259281,63314.0,63313.0,0.174945]
[1724440031073,0.0259281,63314.0,63313.0,0.490835]
[1724440031523,0.02592616,63314.0,63313.0,0.490835]
[1724440031745,0.02592616,63314.0,63313.0,0.806725]
[1724440034638,0.02592616,63314.0,63313.0,0.806725]
[1724440034838,0.02596196,63314.0,63313.0,0.806725]
[1724440036908,0.02596196,63314.0,63313.0,1.115615]
[1724440036909,0.02496196,63314.0,63313.0,1.115615]
[1724440037265,0.02596196,63314.0,63313.0,1.122615]
[1724440037466,0.02596196,63314.0,63313.0,1.112615]
[1724440037664,0.04973264,63314.0,63313.0,1.114615]
[1724440038048,0.03790788,63314.0,63313.0,1.114615]
[1724440038243,0.02567708,63314.0,63313.0,1.105615]
[1724440038450,0.05075955,63314.0,63313.0,1.112615]
[1724440038649,0.05076513,63314.0,63313.0,1.121615]
[1724440039029,0.05076513,63314.0,63313.0,0.805725]
[1724440039229,0.05076513,63314.0,63313.0,0.489835]
[1724440039469,0.57383626,63314.0,63313.0,0.016]
[1724440039651,0.52640865,63314.0,63313.0,0.016]
[1724440039884,0.43182668,63314.0,63313.0,0.016]
[1724440040037,0.43182668,63314.0,63302.0,0.000824]
[1724440040038,0.1729,63305.0,63302.0,0.000824]
[1724440040239,0.789937,63296.0,63295.0,0.00038037]
[1724440040457,0.86151409,63296.0,63295.0,0.00038037]